Cogmind - Beta 13 @@@ ROGUE MODE // 2024.03.31 @ 21:25:30 Player: prestanton Result: Destroyed by S-10 Pest with Light Assault Rifle Performance ------------- Evolutions (1) 500 Regions Visited (2) 400 Robots Destroyed (32) 160 Value Destroyed (705) 705 Prototype IDs (0) 0 Alien Tech Used (0) 0 Bonus (0) 0 TOTAL SCORE: 1765 Bonus ------- None Cogmind --------- Core Integrity 0/400 Matter 266/300 Energy 100/100 System Corruption 0% Temperature Cool (0) Movement Core (400) Ox7 Location -9/Materials Parts ------- > --- POWER (1) -------- (None) > --- PROPULSION (4) --- (None) > --- UTILITY (2) ------ Large Storage Unit > --- WEAPON (2) ------- Mace > --- INVENTORY (15) --- Ion Engine Sensor Array Shotgun Datajack Peak State ------------ > --- POWER ------------ Ion Engine > --- PROPULSION ------- Aluminum Leg Aluminum Leg Aluminum Leg Aluminum Leg > --- UTILITY ---------- Large Storage Unit Light Armor Plating > --- WEAPON ----------- Particle Gun Shotgun > --- INVENTORY -------- Ion Engine Assault Rifle Light Assault Rifle Light Assault Rifle Mini Grenade Launcher Datajack [Rating: 11] Favorites ----------- Power Light Ion Engine Engine Light Ion Engine Propulsion Aluminum Leg Leg Aluminum Leg Utility Large Storage Unit Storage Large Storage Unit Protection Light Armor Plating Weapon Light Assault Rifle Energy Gun Particle Gun Ballistic Gun Light Assault Rifle Launcher Mini Grenade Launcher Impact Weapon Mace Build | -11 -10 -9 ------- Run | Yrd Mat Mat Slots Evolved 2 | . . 2 Power . | . . . Propulsion 2 | . . 2 Utility . | . . . Weapon . | . . . Parts Attached 25 | 6 1 18 Power 2 | 1 . 1 Engine 2 | 1 . 1 Core . | . . . Reactor . | . . . Propulsion 9 | 2 . 7 Treads . | . . . Leg 9 | 2 . 7 Wheel . | . . . Hover . | . . . Flight . | . . . Utility 3 | 1 1 1 Device . | . . . Storage 2 | 1 1 . Processor . | . . . Hackware . | . . . Protection 1 | . . 1 Artifact . | . . . Weapon 11 | 2 . 9 Energy Gun 1 | . . 1 Energy Cannon . | . . . Ballistic Gun 7 | 2 . 5 Ballistic Cannon . | . . . Launcher 2 | . . 2 Special Weapon . | . . . Impact Weapon 1 | . . 1 Slashing Weapon . | . . . Piercing Weapon . | . . . Special Melee Weapon . | . . . Unidentified Prototypes . | . . . Parts Lost 10 | . . 10 Power 1 | . . 1 Propulsion 4 | . . 4 Utility 1 | . . 1 Weapon 4 | . . 4 Highest Loss Streak 8 | . . 8 To Critical Strikes . | . . . Average Slot Usage (%) 87 | . 85 88 Engine 11 | . 14 10 Leg 33 | . 28 36 Storage 11 | . 14 11 Protection 6 | . . 9 Energy Gun 3 | . . 4 Ballistic Gun 17 | . 28 13 Impact Weapon 1 | . . 2 Naked Turns . | . . . Heaviest Build 34 | 11 26 34 Greatest Support 40 | 20 20 40 Greatest Overweight (x) 7 | . 1 7 Average Overweight (x) . | . . . Largest Inventory Capacity 15 | 8 15 15 Average Capacity 13 | 7 11 15 Most Carried 7 | 5 3 7 Average Carried 3 | 1 1 4 Final Capacity 15 | 8 15 15 Final Carried 4 | 1 3 4 Class Distribution -------------------- 59% | Mutant 40% | Scavenger-Mutant Dominant Class ---------------- Mutant | -10/Materials Scavenger-Mutant | -9/Materials Resources | -11 -10 -9 ----------- Run | Yrd Mat Mat Matter Collected 580 | 238 51 291 Remotely . | . . . Salvage Created 871 | . 82 789 Parts 69 | . 8 61 Haulers Intercepted . | . . . Recyclers Shooed 1 | . 1 . Parts Field Recycled . | . . . Retrieved Matter . | . . . Parts Self-Destructed . | . . . Prevented . | . . . Kills | -11 -10 -9 ------- Run | Yrd Mat Mat Combat Hostiles Destroyed 23 | . 4 19 Melee 4 | . . 4 Guns 16 | . 4 12 AOE 3 | . . 3 Classes Destroyed 7 | . 2 5 Worker 2 | . . 2 Builder 4 | . . 4 Recycler 1 | . . 1 Watcher 2 | . . 2 Swarmer 9 | . 3 6 Grunt 11 | . 1 10 Sentry 3 | . . 3 Best Kill Streak 12 | . 3 12 Combat Bots Only 9 | . 3 9 Max Kills in Single Turn 3 | . 1 3 Gunslinging . | . . . Exploded 3 | . . 3 Melee 1 | . . 1 Uniques/NPCs Destroyed . | . . . Combat | -11 -10 -9 -------- Run | Yrd Mat Mat Hostile Shots Fired 159 | . 17 142 Missed 34 | . 2 32 Damage Taken 1521 | . 123 1398 Core 417 | . 17 400 Absorbed by Shields . | . . . Core Remaining (%) 96 | 100 93 . Volleys Fired 76 | . 8 68 Largest 2 | . 2 2 Hottest 88 | . 40 88 Shots Fired 114 | . 16 98 Gun 108 | . 16 92 Cannon . | . . . Launcher 6 | . . 6 Special . | . . . Kinetic 83 | . 16 67 Thermal 25 | . . 25 Explosive 6 | . . 6 Electromagnetic . | . . . Robot Hit Streak 9 | . 4 9 Robot Miss Streak 5 | . 1 5 Penetration Max . | . . . Secondary Targets 2 | . 1 1 Max Gunslinging Chain 1 | . 1 1 Shots Hit Robots 81 | . 12 69 Core Hits 47 | . 7 40 Critical Kills 1 | . . 1 Critical Parts Destroyed 1 | . . 1 Critical Strikes 3 | . . 3 Burn 1 | . . 1 Destroy 1 | . . 1 Smash 1 | . . 1 Melee Attacks 16 | . . 16 Impact 16 | . . 16 Slashing . | . . . Piercing . | . . . Sneak Attacks 1 | . . 1 Combat Hostiles . | . . . Follow-up Attacks . | . . . Damage Inflicted 1524 | . 124 1400 Guns 799 | . 124 675 Cannons . | . . . Explosions 437 | . . 437 Melee 285 | . . 285 Ramming 3 | . . 3 Kinetic 595 | . 124 471 Thermal 204 | . . 204 Explosive 437 | . . 437 Electromagnetic . | . . . Impact 285 | . . 285 Slashing . | . . . Piercing . | . . . Highest Corruption . | . . . Average Corruption . | . . . Corruption Purged . | . . . Corruption Blocked . | . . . Overload Shots . | . . . Overflow Damage 113 | . . 113 Projectiles . | . . . Explosions 26 | . . 26 Melee 87 | . . 87 Knockbacks 2 | . . 2 Impact 2 | . . 2 Kinetic . | . . . Secondary . | . . . Self-Inflicted Damage 84 | . . 84 Shots 2 | . . 2 Rammed . | . . . Targets Rammed 1 | . . 1 Kicked 1 | . . 1 Crushed . | . . . Highest Temperature 587 | . . 587 Average Temperature 217 | . . 217 Received Heat Transfer 465 | . . 465 Effects 16 | . . 16 Shutdowns 3 | . . 3 Energy Bleed 2 | . . 2 Interference 1 | . . 1 Short Circuit 2 | . . 2 Damage (minor) 2 | . . 2 Damage (major) 5 | . . 5 Damage (core) 1 | . . 1 Siege Activations . | . . . Robots Corrupted . | . . . Combat Hostiles . | . . . Parts Fried 3 | . . 3 Impact Corruptions 4 | . . 4 Robots Melted . | . . . Combat Hostiles . | . . . Parts Melted 1 | . . 1 Heat Transferred 555 | . . 555 Parts Sabotaged . | . . . Parts Stolen . | . . . Parts Stripped . | . . . Power Chain Reactions . | . . . Alert | -11 -10 -9 ------- Run | Yrd Mat Mat Peak Influence 332 | . 102 332 Initial . | . . . Average 61 | . 35 86 Maximum Alert Level 1 | . . 1 Low Security (%) 92 | 100 100 86 Level 1 7 | . . 13 Level 2 . | . . . Level 3 . | . . . Level 4 . | . . . Level 5 . | . . . High Security . | . . . Max Security . | . . . Squads Dispatched 2 | . 1 1 Investigation 2 | . 1 1 Extermination . | . . . Reinforcement . | . . . Assault . | . . . Garrison . | . . . Intercept . | . . . Searches Triggered . | . . . Construction Impeded . | . . . Haulers Reinforced . | . . . Active Scanning Responses . | . . . Cargo Convoy Interrupts . | . . . Stealth | -11 -10 -9 --------- Run | Yrd Mat Mat Distress Signals 1 | . . 1 Communications Jammed . | . . . Distress Signals . | . . . Times Spotted 31 | . 4 27 Peak Tracking Total 7 | . 3 7 Tactical Retreats 1 | . . 1 Traps | -11 -10 -9 ------- Run | Yrd Mat Mat Traps Triggered 1 | . . 1 Indirectly . | . . . Trap Hack Attempts . | . . . Triggered . | . . . Disarmed . | . . . Reprogrammed . | . . . Reused . | . . . Traps Extracted . | . . . Installed . | . . . Triggered . | . . . Machines | -11 -10 -9 ---------- Run | Yrd Mat Mat Machines Disabled 2 | . . 2 Max in Single Turn 1 | . . 1 Machines Repaired . | . . . Machines Dismantled . | . . . Machines Sabotaged . | . . . Overloaded Fab Kills . | . . . Hacking | -11 -10 -9 --------- Run | Yrd Mat Mat Machines Accessed 7 | . 2 5 Terminals 4 | . 2 2 Fabricators . | . . . Repair Stations . | . . . Recycling Units 2 | . . 2 Scanalyzers 1 | . . 1 Garrison Access . | . . . Total Hacks 18 | . 4 14 Successful 6 | . 2 4 Failed 12 | . 2 10 Catastrophic 3 | . . 3 Database Lockouts . | . . . Manual . | . . . Terminals 9 | . 4 5 Fabricators . | . . . Repair Stations . | . . . Recycling Units 7 | . . 7 Scanalyzers 2 | . . 2 Garrison Access . | . . . Terminal Hacks 3 | . 2 1 Record 1 | . 1 . Locate Traps 1 | . . 1 Hauler Manifests 1 | . 1 . Fabricator Hacks . | . . . Repair Station Hacks . | . . . Recycling Unit Hacks 1 | . . 1 Report Inventory 1 | . . 1 Scanalyzer 2 | . . 2 Insert Component 1 | . . 1 Analyze 1 | . . 1 Garrison Access Hacks . | . . . Unauthorized Hacks . | . . . Terminals . | . . . Fabricators . | . . . Repair Stations . | . . . Recycling Units . | . . . Scanalyzers . | . . . Garrison Access . | . . . Data Cores Recovered . | . . . Used . | . . . Hacking Detections 6 | . 1 5 Full Trace Events 3 | . 1 2 Feedback Events . | . . . Feedback Blocked . | . . . Robot Schematics Acquired . | . . . Robots Built . | . . . Authchips . | . . . Time . | . . . Total Robot Build Rating . | . . . Part Schematics Acquired 1 | . . 1 Parts Built . | . . . Authchips . | . . . Time . | . . . Total Part Build Rating . | . . . Parts Repaired . | . . . Time . | . . . Parts Recycled . | . . . Recycled Matter . | . . . Retrieved Matter . | . . . Retrieved Components . | . . . Parts Scanalyzed 1 | . . 1 Part Schematics Acquired 1 | . . 1 Parts Damaged . | . . . Bothacking | -11 -10 -9 ------------ Run | Yrd Mat Mat Used RIF Installer . | . . . Robots Hacked . | . . . Non-combat . | . . . Combat . | . . . Robot Hacks Applied . | . . . Relay Couplers Released . | . . . Fabnet Peak Effective % . | . . . Robots Rewired . | . . . Allies Hacked . | . . . Hacks Repelled . | . . . Allies | -11 -10 -9 -------- Run | Yrd Mat Mat Total Allies . | . . . Largest Group . | . . . Highest-Rated Group . | . . . Highest-Rated Ally . | . . . Total Orders . | . . . Ally Attacks . | . . . Total Damage . | . . . Kills . | . . . Allies Corrupted . | . . . Allies Melted . | . . . Intel | -11 -10 -9 ------- Run | Yrd Mat Mat Robot Analysis Total . | . . . Derelict Logs Recovered . | . . . Drone Launches . | . . . Drone Recoveries . | . . . Exploration | -11 -10 -9 ------------- Run | Yrd Mat Mat Turns Passed 1781 | 217 480 1084 Spaces Moved 895 | 84 225 586 Core 19 | 16 . 3 Treads . | . . . Legs 876 | 68 225 583 Wheels . | . . . Hover . | . . . Flight . | . . . Fastest Speed 50 | 50 120 120 Average Speed 137 | 106 155 135 Slowest Speed 400 | 120 190 400 Overloaded Moves . | . . . Propulsion Burnouts . | . . . Robots Hopped . | . . . Cave-ins Triggered . | . . . Exploration Rate (%) 29 | 7 37 44 Regions Visited 2 Branch Regions . Pre-discovered Areas . | . . . Known Exits Taken . | . . . Unknown Exits Taken 2 | 1 1 . Scrap Searched . | . . . Spaces Dug 6 | . . 6 Terrain Destroyed 36 | . . 36 Melee . | . . . Projectile . | . . . AOE 36 | . . 36 Terrain Rammed . | . . . Walls Destroyed . | . . . Machines Disabled . | . . . Actions | -11 -10 -9 --------- Run | Yrd Mat Mat Total 1315 | 211 342 762 Wait 265 | 116 105 44 Move 893 | 83 224 586 Hop . | . . . Pick Up 26 | 6 3 17 Fast Attach 1 | 1 . . Attach 20 | 5 1 14 Detach 2 | . . 2 Swap 4 | . . 4 Drop 11 | . 1 10 Fire 76 | . 8 68 Melee 16 | . . 16 Ram . | . . . Kick 1 | . . 1 Crush . | . . . Escape Stasis . | . . . Rewire . | . . . Trap . | . . . Miscellaneous . | . . . Route ------- -11/Scrapyard -10/Materials -9/Materials History --------- Turn | Location | Event 2 | -11/Scrapyard | Discovered new exit (range 16) 218 | -11/Scrapyard | Entered Materials 314 | -10/Materials | Build established: Mutant 677 | -10/Materials | Discovered new exit (range 13) 698 | -10/Materials | Entered another Materials area 698 | -9/Materials | Evolved 2 slots: Propulsion x2 1275 | -9/Materials | Build established: Scavenger-Mutant 1695 | -9/Materials | Core integrity fell below 50% 1755 | -9/Materials | Core integrity fell below 20% 1764 | -9/Materials | Lost 8 parts (1p3n1u3w) 1766 | -9/Materials | Destroyed 9 combat bots 1782 | -9/Materials | Destroyed by S-10 Pest with Light Assault Rifle Last Messages --------------- 01766_ U-05 Engineer lays Concrete. 01770_ K-01 Serf collects debris. 01770_ U-05 Engineer lays Concrete. 01770_ U-05 Engineer builds a Wall. 01771_ Aluminum Leg destroyed. 01771_ U-05 Engineer lays Concrete. 01773_ K-01 Serf collects debris. 01773_ U-05 Engineer lays Concrete. 01773_ K-01 Serf cleans the Terminal. 01773_ U-05 Engineer lays Concrete. 01774_ U-05 Engineer builds a Door. 01775_ U-05 Engineer lays Concrete. 01776_ K-01 Serf collects debris. 01777_ The unstable cave ceiling collapses. 01777_ Wheel crushed. 01777_ U-05 Engineer lays Concrete. 01777_ U-05 Engineer builds a Wall. 01778_ U-05 Engineer lays Concrete. 01779_ K-01 Serf collects debris. 01780_ U-05 Engineer lays Concrete. Map ----- +----------------------------------------------------+ | ??????????????????????????????????? | | ??????????????????????????? ????? | | ??????????????????????????? ????? | | ??????????????????????????# #???? | | ???????????????????#?###??# #???? | | ??????????????????# ??# #???? | | ??????????????????# [[! ## #???? | | ??????????????????# []! # #???? | | ??????????????????# [] ## ##??? | | ??????????????????? # ##?? | | ???????????????????? #?? | | ???????????????T"##### # = #?? | | ?????????????? *%!##?? | | ??????????????? #?? | | ??????????????????? ! ###? | | ??????????????????????? % # #? | | ????????????????????????####+## ## | | ????????????????????????#% ! # | | ????????????????????????# "%u u # | | ????????????????????????# *%=%* #? | | ????????????????????????# "" #? | | ????????????????????????# #? | | ????????????????????????# """" #? | | ????????????????# ####### """" #? | | ????????????????# + """" #? | | ?????????????????########@ #? | | ????????????????????????#s########? | | ????????????????????????# #???????? | | ????????????????????????# ###?????? | | ?????????????????######## # #?????? | | ?????????? #?????? | | ?????????????????######## # #?????? | | ????????????????????????# ""#?????? | | ????????????????????????# T"#?????? | | ????????????????????????# ""#?????? | | ????????????????????????# ###?????? | | ????????????????######??# #???????? | | ????????????????? #??# #???????? | | ????????##???????# #??# #???????? | | ????????# ######## #??# #?####### | | ????????# # #??# #?# # | | ????????# # #### #?# T # | | ????????# # #?# # | | ????????# # #?# # | | ????????# !!= # ### """ # | | ###?????# !!= # # """ # | | * #######| !! / +%""" # | | # # %# # | | ####### % # # """ # | | #????####/####### ###### # """ # | +----------------------------------------------------+ Best States ------------- Heat Dissipation 28 Energy Generation 10 Energy Capacity 250 Matter Stores 300 Matter Capacity 300 Sight Range 16 Terrain Scan Density 10 Armor Coverage 150 Evasion (%) 55 Item Schematics ----------------- Mni. Grenade Launcher | -9/Materials | Scanalyzed Robot Schematics ------------------ None Fabricated ------------ Nothing Alien Tech Used ----------------- None Achievements -------------- None Challenges ------------ None Game ------ Seed SmartbombDiametricBooster Manual? 0 Play Time 00:19:35 Cumulative 2.4 hours Start 2024.03.31 @ 21:07:13 End 2024.03.31 @ 21:25:30 Sessions 1 Manual Loads 0 Difficulty Rogue Special Mode None Game No. 5 Rogue 5 Adventurer 0 Explorer 0 Win Type - Total 0 Types 0/0/0/0/0/0/0/0/0 Lore% 5 Gallery% 7 Achievement% 7 Wizard Run 0 Options --------- Layout 1 ASCII 0 Keyboard 0 Movement Mouse Keybinds 0 Fullscreen 1 Font 32/SmallcapsGlow Map View 50x35 Zoom Use 0% Tactical HUD 1 Map Filters NONE Filters NONE Steam 1 RUN: 2eea1ea7-546d-4260-80cd-fb246e5cc177